Cogmind - Beta 13 @@@ ROGUE MODE // 2024.04.13 @ 19:09:42 Player: Mogwok Wargfriend Result: Destroyed by S-10 Pest with Light Assault Rifle Performance ------------- Evolutions (0) 0 Regions Visited (1) 200 Robots Destroyed (23) 115 Value Destroyed (290) 290 Prototype IDs (0) 0 Alien Tech Used (0) 0 Bonus (0) 0 TOTAL SCORE: 605 Bonus ------- None Cogmind --------- Core Integrity 0/250 Matter 294/300 Energy 160/160 System Corruption 1% Temperature Cool (84) Movement Rolling (100) Location -10/Materials Parts ------- > --- POWER (1) -------- Light Nuclear Core > --- PROPULSION (2) --- Compact Wheel Compact Wheel > --- UTILITY (2) ------ Medium Storage Unit Signal Interpreter > --- WEAPON (2) ------- Particle Gun Assault Rifle > --- INVENTORY (10) --- Compact Wheel Heat Sink Medium Battery (150) EM Pulse Gun Particle Gun Particle Gun Light Assault Rifle Datajack Mining Laser Peak State ------------ > --- POWER ------------ Light Nuclear Core > --- PROPULSION ------- Compact Wheel Compact Wheel > --- UTILITY ---------- Medium Storage Unit Signal Interpreter > --- WEAPON ----------- Particle Gun Assault Rifle > --- INVENTORY -------- Compact Wheel Heat Sink Medium Battery EM Pulse Gun Particle Gun Particle Gun Light Assault Rifle Datajack Mining Laser [Rating: 11] Favorites ----------- Power Light Ion Engine Engine Light Ion Engine Power Core Light Nuclear Core Propulsion Compact Wheel Wheel Compact Wheel Utility Signal Interpreter Storage Medium Storage Unit Processor Signal Interpreter Weapon Assault Rifle Energy Gun Particle Gun Ballistic Gun Assault Rifle Build | -11 -10 ------- Run | Yrd Mat Slots Evolved . | . . Power . | . . Propulsion . | . . Utility . | . . Weapon . | . . Parts Attached 14 | 6 8 Power 3 | 1 2 Engine 2 | 1 1 Core 1 | . 1 Reactor . | . . Propulsion 5 | 2 3 Treads . | . . Leg . | . . Wheel 5 | 2 3 Hover . | . . Flight . | . . Utility 3 | 1 2 Device . | . . Storage 2 | 1 1 Processor 1 | . 1 Hackware . | . . Protection . | . . Artifact . | . . Weapon 3 | 2 1 Energy Gun 2 | 1 1 Energy Cannon . | . . Ballistic Gun 1 | 1 . Ballistic Cannon . | . . Launcher . | . . Special Weapon . | . . Impact Weapon . | . . Slashing Weapon . | . . Piercing Weapon . | . . Special Melee Weapon . | . . Unidentified Prototypes . | . . Parts Lost 3 | . 3 Power 2 | . 2 Propulsion 1 | . 1 Utility . | . . Weapon . | . . Highest Loss Streak 1 | . 1 To Critical Strikes . | . . Average Slot Usage (%) 94 | . 94 Engine 13 | . 13 Wheel 26 | . 26 Storage 14 | . 14 Processor 10 | . 10 Energy Gun 14 | . 14 Ballistic Gun 14 | . 14 Naked Turns . | . . Heaviest Build 20 | 12 20 Greatest Support 32 | 20 32 Greatest Overweight (x) 1 | . 1 Average Overweight (x) . | . . Largest Inventory Capacity 10 | 8 10 Average Capacity 9 | 7 9 Most Carried 10 | 8 10 Average Carried 8 | 6 9 Final Capacity 10 | 8 10 Final Carried 9 | 8 9 Class Distribution -------------------- 100% | Mutant Dominant Class ---------------- Mutant | -10/Materials Resources | -11 -10 ----------- Run | Yrd Mat Matter Collected 557 | 350 207 Remotely . | . . Salvage Created 813 | 185 628 Parts 46 | 17 29 Haulers Intercepted 2 | . 2 Recyclers Shooed 2 | 1 1 Parts Field Recycled . | . . Retrieved Matter . | . . Parts Self-Destructed . | . . Prevented . | . . Kills | -11 -10 ------- Run | Yrd Mat Combat Hostiles Destroyed 9 | . 9 Guns 9 | . 9 Classes Destroyed 7 | 2 5 Worker 2 | . 2 Tunneler 5 | 5 . Hauler 2 | . 2 Recycler 4 | 1 3 Watcher 1 | . 1 Swarmer 5 | . 5 Grunt 4 | . 4 Best Kill Streak 7 | 4 7 Combat Bots Only 4 | . 4 Max Kills in Single Turn 1 | 1 1 Gunslinging . | . . Exploded . | . . Melee . | . . Uniques/NPCs Destroyed . | . . Combat | -11 -10 -------- Run | Yrd Mat Hostile Shots Fired 40 | . 40 Missed 7 | . 7 Damage Taken 562 | . 562 Core 252 | . 252 Absorbed by Shields . | . . Core Remaining (%) 100 | 100 . Volleys Fired 77 | 31 46 Largest 2 | 1 2 Hottest 85 | 40 85 Shots Fired 123 | 31 92 Gun 123 | 31 92 Cannon . | . . Launcher . | . . Special . | . . Kinetic 76 | 30 46 Thermal 46 | . 46 Explosive . | . . Electromagnetic 1 | 1 . Robot Hit Streak 7 | 6 7 Robot Miss Streak 8 | 4 8 Penetration Max . | . . Secondary Targets 2 | . 2 Max Gunslinging Chain 1 | . 1 Shots Hit Robots 70 | 22 48 Core Hits 29 | 7 22 Critical Kills . | . . Critical Parts Destroyed 2 | 2 . Critical Strikes 6 | 3 3 Burn 3 | . 3 Destroy 2 | 2 . Corrupt 1 | 1 . Melee Attacks . | . . Impact . | . . Slashing . | . . Piercing . | . . Sneak Attacks . | . . Combat Hostiles . | . . Follow-up Attacks . | . . Damage Inflicted 942 | 269 673 Guns 942 | 269 673 Cannons . | . . Explosions . | . . Melee . | . . Ramming . | . . Kinetic 539 | 257 282 Thermal 391 | . 391 Explosive . | . . Electromagnetic 12 | 12 . Impact . | . . Slashing . | . . Piercing . | . . Highest Corruption 1 | . 1 Average Corruption 1 | . 1 Corruption Purged . | . . Corruption Blocked . | . . Effects 3 | . 3 Message Errors 1 | . 1 Energy Discharges 1 | . 1 Data Loss (minor) 1 | . 1 Overload Shots . | . . Overflow Damage . | . . Projectiles . | . . Explosions . | . . Melee . | . . Knockbacks . | . . Impact . | . . Kinetic . | . . Secondary . | . . Self-Inflicted Damage . | . . Shots . | . . Rammed . | . . Targets Rammed . | . . Kicked . | . . Crushed . | . . Highest Temperature 198 | . 198 Average Temperature 66 | . 66 Received Heat Transfer 57 | . 57 Siege Activations . | . . Robots Corrupted . | . . Combat Hostiles . | . . Parts Fried . | . . Impact Corruptions . | . . Robots Melted . | . . Combat Hostiles . | . . Parts Melted 3 | . 3 Heat Transferred 1147 | . 1147 Parts Sabotaged . | . . Parts Stolen . | . . Parts Stripped . | . . Power Chain Reactions . | . . Alert | -11 -10 ------- Run | Yrd Mat Peak Influence 284 | 30 284 Initial 19 | . 19 Average 115 | 15 144 Maximum Alert Level 1 | . 1 Low Security (%) 78 | 100 72 Level 1 21 | . 27 Level 2 . | . . Level 3 . | . . Level 4 . | . . Level 5 . | . . High Security . | . . Max Security . | . . Squads Dispatched 1 | . 1 Investigation . | . . Extermination . | . . Reinforcement 1 | . 1 Assault . | . . Garrison . | . . Intercept . | . . Searches Triggered . | . . Construction Impeded . | . . Haulers Reinforced . | . . Active Scanning Responses . | . . Cargo Convoy Interrupts . | . . Stealth | -11 -10 --------- Run | Yrd Mat Distress Signals . | . . Communications Jammed . | . . Distress Signals . | . . Times Spotted 19 | . 19 Peak Tracking Total 6 | . 6 Tactical Retreats 2 | . 2 Traps | -11 -10 ------- Run | Yrd Mat Traps Triggered 2 | . 2 Indirectly . | . . Trap Hack Attempts . | . . Triggered . | . . Disarmed . | . . Reprogrammed . | . . Reused . | . . Traps Extracted . | . . Installed . | . . Triggered . | . . Machines | -11 -10 ---------- Run | Yrd Mat Machines Disabled 1 | . 1 Max in Single Turn 1 | . 1 Machines Repaired . | . . Machines Dismantled . | . . Machines Sabotaged . | . . Overloaded Fab Kills . | . . Hacking | -11 -10 --------- Run | Yrd Mat Machines Accessed 4 | . 4 Terminals 3 | . 3 Fabricators . | . . Repair Stations . | . . Recycling Units 1 | . 1 Scanalyzers . | . . Garrison Access . | . . Total Hacks 8 | . 8 Successful 2 | . 2 Failed 6 | . 6 Catastrophic 1 | . 1 Database Lockouts . | . . Manual 8 | . 8 Terminals 7 | . 7 Fabricators . | . . Repair Stations . | . . Recycling Units 1 | . 1 Scanalyzers . | . . Garrison Access . | . . Terminal Hacks . | . . Fabricator Hacks . | . . Repair Station Hacks . | . . Recycling Unit Hacks . | . . Scanalyzer . | . . Garrison Access Hacks . | . . Unauthorized Hacks 2 | . 2 Terminals 1 | . 1 Operators 1 | . 1 Fabricators . | . . Repair Stations . | . . Recycling Units 1 | . 1 Reject 1 | . 1 Scanalyzers . | . . Garrison Access . | . . Data Cores Recovered . | . . Used . | . . Hacking Detections 3 | . 3 Full Trace Events 1 | . 1 Feedback Events 1 | . 1 Corruption 1 | . 1 Feedback Blocked . | . . Robot Schematics Acquired . | . . Robots Built . | . . Authchips . | . . Time . | . . Total Robot Build Rating . | . . Part Schematics Acquired . | . . Parts Built . | . . Authchips . | . . Time . | . . Total Part Build Rating . | . . Parts Repaired . | . . Time . | . . Parts Recycled . | . . Recycled Matter . | . . Retrieved Matter . | . . Retrieved Components . | . . Parts Scanalyzed . | . . Part Schematics Acquired . | . . Parts Damaged . | . . Bothacking | -11 -10 ------------ Run | Yrd Mat Used RIF Installer . | . . Robots Hacked . | . . Non-combat . | . . Combat . | . . Robot Hacks Applied . | . . Relay Couplers Released . | . . Fabnet Peak Effective % . | . . Robots Rewired . | . . Allies Hacked . | . . Hacks Repelled . | . . Allies | -11 -10 -------- Run | Yrd Mat Total Allies . | . . Largest Group . | . . Highest-Rated Group . | . . Highest-Rated Ally . | . . Total Orders . | . . Ally Attacks . | . . Total Damage . | . . Kills . | . . Allies Corrupted . | . . Allies Melted . | . . Intel | -11 -10 ------- Run | Yrd Mat Robot Analysis Total . | . . Derelict Logs Recovered . | . . Drone Launches . | . . Drone Recoveries . | . . Exploration | -11 -10 ------------- Run | Yrd Mat Turns Passed 787 | 176 611 Spaces Moved 575 | 119 456 Core 7 | 7 . Treads . | . . Legs . | . . Wheels 568 | 112 456 Hover . | . . Flight . | . . Fastest Speed 50 | 50 80 Average Speed 92 | 78 95 Slowest Speed 115 | 80 115 Overloaded Moves . | . . Propulsion Burnouts . | . . Robots Hopped . | . . Cave-ins Triggered . | . . Exploration Rate (%) 29 | 6 52 Regions Visited 1 Branch Regions . Pre-discovered Areas . | . . Known Exits Taken . | . . Unknown Exits Taken 1 | 1 . Scrap Searched . | . . Spaces Dug . | . . Terrain Destroyed . | . . Melee . | . . Projectile . | . . AOE . | . . Terrain Rammed . | . . Walls Destroyed . | . . Machines Disabled . | . . Actions | -11 -10 --------- Run | Yrd Mat Total 710 | 169 541 Wait 12 | . 12 Move 574 | 118 456 Hop . | . . Pick Up 21 | 12 9 Fast Attach 7 | 4 3 Attach 4 | 2 2 Detach . | . . Swap 3 | . 3 Drop 12 | 2 10 Fire 77 | 31 46 Melee . | . . Ram . | . . Kick . | . . Crush . | . . Escape Stasis . | . . Rewire . | . . Trap . | . . Miscellaneous . | . . Route ------- -11/Scrapyard -10/Materials (discovered 1 exit: *Mat) History --------- Turn | Location | Event 17 | -11/Scrapyard | Discovered new exit (range 16) 177 | -11/Scrapyard | Entered Materials 321 | -10/Materials | Build established: Mutant 469 | -10/Materials | Discovered new exit (range 15) 504 | -10/Materials | Core integrity fell below 50% 730 | -10/Materials | Identified exit to Materials 766 | -10/Materials | Core integrity fell below 20% 788 | -10/Materials | Destroyed by S-10 Pest with Light Assault Rifle Last Messages --------------- 00695_ Acquired 9 matter. 00696_ System corrupted: Component data lost. 00711_ K-01 Serf collects debris. 00718_ K-01 Serf cleans the Terminal. 00730_ K-01 Serf collects debris. 00730_ EXIT=IDENTIFIED: MATERIALS 00734_ K-01 Serf collects debris. 00739_ XVZ#%0WLGYJLAZWTFRML 00742_ K-01 Serf collects debris. 00745_ K-01 Serf cleans the Nuclear Reactor. 00765_ Triggered EMP Trap. 00765_ A bubble of electromagnetic force engulfs the area. 00765_ Chain reaction triggered in Lgt. Ion Engine. 00774_ S-10 Pest destroyed. 00775_ Acquired 13 matter. 00777_ K-01 Serf collects debris. 00778_ Acquired 3 matter. 00785_ S-10 Pest destroyed. Map ----- +----------------------------------------------------+ | ????????????????????????????????????????????????? | | ????????????????????????????????????????????????? | | ????????????????????????????????????????????????? | | ????????????????????????????????????????????????? | | ?????o??????????????????????????????????????????? | | ????????????????????????????????????????????????? | | ????????????????????????????????????????????????? | | ?????????????????######?????????????????????????? | | ?????????????????# #?????????????????????????? | | ??????????####+### !! #?????? [????????????????? | | ??????????T ## !! #????"" [[???????????????? | | ??????????? ?#! #??? ???????????????? | | ??????????? ?# #??? ?????????????? | | ???????????? * ??# #?? ?????????????? | | ???????????? ??# #? ??????????????? | | ????????????#+#??# [ #? ?????????????????? | | ????#########!#??# # #???????????????????? | | ????# ##%#??####+# #???????????????????? | | ????# "" [ ## ##??# #???????????????????? | | ????# "" # #### #???????????????????? | | ????# "T + #???????????????????? | | ????# "" #!% #####+##########?????????????????? | | ????# "" # ## # """ #????? ?????????? | | ????# # ## # "Y" #???? ????????? | | ????# = # ## [s% #??? ???????? | | ????# # ## #@ #?? ???????? | | ????# """" # ## # #?? ??????? | | ????# """" # ## # #? ????????? | | ????# """" # ## ##/##### """?????????? | | ????# # ## + u ! """?????????? | | ????######## ## # u """"" ??????? | | ??????###### ## = # ?????? | | ??????# # ## ## ]]] ?????? | | ??????# # ########### ]]] """"" ??????? | | ####### # #?######### ]] """?????????? | | # # #?# """"" # """?????????? | | ! # !+% #?# """"" # ?????? | | ===*!!# # #?# """"" # """ ?????? | | %!%%*=#/#### #?# + """ ?????? | | =[/!=%# #?# ! # """ ??????? | | =[![%!+ ####+###### ???????? | | / =# """ # ## ???????? | | # """ # """ ## #######+#####????????? | | # """ # """ ## #????????????????????? | | % # # """ ## #????????????????????? | | ==!!# + ## #????????????????????? | | "T # o""" # " """ ## ?????????????????????? | | """ # """ # T """ ## ?????????????????????? | | ####### """ # " """ ## ?????????????????????? | | T # # #? ?????????????????????? | +----------------------------------------------------+ Best States ------------- Heat Dissipation 25 Energy Generation 14 Energy Capacity 160 Matter Stores 300 Matter Capacity 300 Sight Range 16 Terrain Scan Density 10 Evasion (%) 44 Item Schematics ----------------- None Robot Schematics ------------------ None Fabricated ------------ Nothing Alien Tech Used ----------------- None Achievements -------------- None Challenges ------------ None Game ------ Seed ChainSpectralAnalyzer Manual? 0 Play Time 00:09:23 Cumulative 165.8 hours Start 2024.04.13 @ 19:03:58 End 2024.04.13 @ 19:09:42 Sessions 1 Manual Loads 0 Difficulty Rogue Special Mode None Game No. 160 Rogue 160 Adventurer 0 Explorer 0 Win Type - Total 0 Types 0/0/0/0/0/0/0/0/0 Lore% 53 Gallery% 64 Achievement% 44 Wizard Run 0 Options --------- Layout 2 ASCII 1 Keyboard 1 Movement Numpad Keybinds 0 Fullscreen 2 Font 32/TamsynBold Map View 50x44 Zoom Use 0% Tactical HUD 1 Map Filters NONE Filters NONE Steam 1 RUN: bb987259-07f0-4bef-bf04-0560c844ed78